bitfinex-derivatives/quotes_SOLF0:USTF0_20260203
["timestamp","ask_amount","ask_price","bid_price","bid_amount"]
[1770132616729,6.58058997,102.03,101.96,73.12857065]
[1770132616926,6.58058997,102.03,101.96,210.55327065]
[1770132617332,6.58058997,102.03,101.96,73.12857065]
[1770132617532,6.58058997,102.01,101.96,73.12857065]
[1770132617734,6.58058997,102.02,101.96,73.12857065]
[1770132618227,6.58058997,102.04,101.96,210.55257065]
[1770132618433,68.58058997,102.06,101.98,73.12857065]
[1770132618736,68.58058997,102.06,101.98,219.35887065]
[1770132618932,68.58058997,102.06,101.99,73.12857065]
[1770132619125,6.58058997,102.06,101.99,73.12857065]
[1770132619328,6.58058997,102.06,101.99,219.34377065]
[1770132619527,6.58058997,102.06,101.99,81.96007065]
[1770132619932,6.58058997,102.06,101.99,73.12857065]
[1770132620131,6.58058997,102.04,101.97,8.8331]
[1770132620332,6.58058997,102.04,101.96,73.12857065]
[1770132620529,6.58058997,102.02,101.95,8.8348]
[1770132620729,6.58058997,102.04,101.97,72.54764176]
[1770132620932,53.31319589,102.07,101.97,81.38094176]
[1770132621133,6.58058997,102.04,101.97,81.38094176]
[1770132621338,6.58058997,102.06,101.98,209.94144176]
[1770132621534,6.58058997,102.06,101.99,218.76244176]
[1770132621731,6.58058997,102.06,101.97,137.4055]
[1770132621937,6.58058997,102.04,101.97,72.54764176]
[1770132622232,140.78411013,102.09,101.97,72.54764176]
[1770132622233,6.58058997,102.02,101.97,72.54764176]
[1770132622829,6.58058997,102.04,101.97,72.54764176]
[1770132623028,6.58058997,102.02,101.97,72.54764176]
[1770132623633,6.58058997,102.04,101.97,72.54764176]
[1770132623837,6.58058997,102.04,101.97,209.95944176]
[1770132624038,6.58058997,102.04,101.97,218.79284176]
[1770132624834,55.22643016,102.04,101.95,8.8347]
[1770132625034,55.22643016,102.04,101.94,72.54764176]
[1770132625035,6.58058997,102.0,101.94,72.54764176]
[1770132625236,6.58058997,102.03,101.97,72.54764176]
[1770132626133,6.58058997,102.03,101.95,137.437]
[1770132626134,6.58058997,102.03,101.95,72.54764176]
[1770132626337,6.58058997,102.01,101.95,72.54764176]
[1770132626535,6.58058997,102.01,101.93,210.01314176]
[1770132626729,6.58058997,102.01,101.94,8.836]
[1770132626936,6.58058997,102.01,101.93,72.54764176]
[1770132626937,6.58058997,101.99,101.93,72.54764176]
[1770132627133,6.58058997,102.01,101.94,72.54764176]
[1770132627739,137.3055,102.05,101.91,210.03014176]
[1770132627740,6.58058997,101.99,101.91,210.03014176]
[1770132628135,6.58058997,101.99,101.91,218.86824176]
[1770132628335,6.58058997,101.99,101.91,72.54764176]
[1770132628938,6.58058997,101.97,101.91,81.38624176]
[1770132629134,6.58058997,101.97,101.91,72.54764176]
[1770132629637,279.98403427,102.0,101.91,72.54764176]
[1770132629835,6.58058997,101.98,101.91,72.54764176]
[1770132630740,6.58058997,101.98,101.91,81.38634176]
[1770132631348,6.58058997,101.96,101.88,210.07294176]
[1770132631679,6.58058997,101.96,101.89,72.54764176]
[1770132631855,6.58058997,101.96,101.89,81.38804176]
[1770132632043,6.58058997,101.96,101.89,210.06594176]
[1770132632238,6.58058997,101.97,101.91,72.54764176]
[1770132632441,6.58058997,101.97,101.88,210.07964176]
[1770132632734,62.0,101.96,101.89,72.54764176]
[1770132632936,62.0,101.96,101.9,8.8392]
[1770132633939,62.0,101.96,101.89,72.54764176]
[1770132634144,6.58058997,101.95,101.89,72.54764176]
[1770132634838,62.0,101.96,101.89,72.54764176]
[1770132634839,68.58058997,101.96,101.89,72.54764176]
[1770132635439,6.58058997,101.96,101.89,210.06714176]
[1770132635639,6.58058997,101.96,101.89,72.54764176]
[1770132635835,6.58058997,101.96,101.91,8.8387]
[1770132636035,229.66058997,101.98,101.91,8.8387]
[1770132636239,6.58058997,101.98,101.91,8.8387]
[1770132636641,6.58058997,101.98,101.9,72.54764176]
[1770132637043,6.58058997,102.0,101.93,8.8369]
[1770132637435,6.58058997,102.0,101.91,210.03494176]
[1770132637632,6.58058997,102.0,101.93,8.837]
[1770132638039,6.58058997,102.0,101.91,210.03944176]
[1770132638342,6.58058997,102.0,101.93,72.54764176]
[1770132638544,68.58058997,102.0,101.93,210.01264176]
[1770132638943,123.76544151,102.0,101.9,210.05274176]
[1770132639140,6.58058997,101.98,101.91,72.54764176]
[1770132639539,6.58058997,101.98,101.92,8.8379]
[1770132640140,6.58058997,101.98,101.91,72.54764176]
[1770132640641,6.58058997,101.95,101.89,210.06664176]
[1770132640842,6.58058997,101.99,101.92,72.54764176]
[1770132641146,62.52009525,102.01,101.93,72.54764176]
[1770132641346,62.52009525,102.01,101.93,210.01294176]
[1770132641547,62.52009525,102.01,101.93,72.54764176]
[1770132641746,62.52009525,102.01,101.94,8.8361]
[1770132642237,62.52009525,102.01,101.93,72.54764176]
[1770132642439,6.58058997,101.99,101.9,210.05014176]
[1770132642639,6.58058997,101.97,101.9,72.54764176]
[1770132643044,6.58058997,101.93,101.87,72.54764176]
[1770132643544,68.58058997,101.93,101.87,72.54764176]
[1770132644542,62.0,101.93,101.87,210.09304176]
[1770132644744,6.58058997,101.95,101.9,8.8396]
[1770132644948,6.58058997,101.97,101.89,210.06704176]
[1770132645247,6.58058997,101.97,101.9,72.54764176]
[1770132645746,62.0,101.96,101.9,72.54764176]
[1770132646048,62.0,101.96,101.9,81.38724176]
[1770132646246,58.93821814,101.95,101.86,72.54764176]
[1770132646443,6.58058997,101.93,101.87,81.38984176]
[1770132646741,230.04058997,101.95,101.88,72.54764176]
[1770132646948,6.58058997,101.97,101.9,72.54764176]
[1770132647248,58.93821814,101.98,101.92,8.8378]
[1770132647547,289.16278774,102.01,101.92,72.54764176]
[1770132647749,289.16278774,102.01,101.93,8.837]
[1770132647942,59.10219777,102.04,101.94,72.54764176]
[1770132648148,65.68278774,102.04,101.94,72.54764176]
[1770132648448,6.58058997,102.02,101.94,72.54764176]
[1770132648948,6.58058997,101.98,101.91,72.54764176]
[1770132649143,6.58058997,101.99,101.92,72.54764176]
[1770132649344,68.58058997,101.99,101.92,72.54764176]
[1770132649744,230.18058997,102.01,101.93,72.54764176]
[1770132649944,230.18058997,102.01,101.93,210.01194176]
[1770132650445,6.58058997,102.01,101.95,8.8353]
[1770132650747,59.10219777,102.02,101.95,74.86525418]
[1770132651042,59.10219777,102.02,101.95,83.70055418]
[1770132651249,6.58058997,101.99,101.92,74.86525418]
[1770132652450,223.86,102.0,101.94,74.86525418]
[1770132653447,223.86,102.0,101.95,8.8352]
[1770132653645,128.20060073,102.01,101.95,211.52928557]
[1770132653646,62.0,102.01,101.95,211.52928557]
[1770132653944,6.58058997,102.03,101.97,8.8335]
[1770132654150,255.85986577,102.04,101.96,211.51488557]
[1770132654649,6.58058997,102.05,101.97,74.09048557]
[1770132654850,66.82045574,102.05,101.97,74.09048557]
[1770132655048,6.58058997,102.01,101.94,74.09048557]
[1770132656542,6.58058997,102.01,101.94,211.54088557]
[1770132656940,68.58058997,102.01,101.94,211.54088557]
[1770132657747,68.58058997,102.01,101.95,8.8353]
[1770132658249,6.58058997,101.99,101.91,211.57098557]
[1770132658547,6.58058997,101.97,101.91,74.09048557]
[1770132658752,6.58058997,101.98,101.91,74.09048557]
[1770132659251,6.58058997,101.98,101.91,82.92928557]
[1770132659954,70.10241061,101.98,101.91,74.09048557]
[1770132660448,62.0,102.01,101.94,74.09048557]
[1770132660653,6.58058997,102.06,101.98,74.09048557]
[1770132661054,70.10241061,102.04,101.95,74.09048557]
[1770132661254,70.10241061,102.04,101.95,211.52778557]
[1770132661449,6.58058997,102.02,101.95,82.92498557]
[1770132661955,6.58058997,102.0,101.92,82.92758557]
[1770132662255,6.58058997,101.98,101.92,74.09048557]
[1770132662451,6.58058997,101.98,101.93,74.09048557]
[1770132662651,6.58058997,101.96,101.9,74.09048557]
[1770132663757,62.0,101.95,101.9,74.09048557]
[1770132664449,62.0,101.95,101.9,82.93008557]
[1770132665155,62.0,101.95,101.91,8.8387]
[1770132665458,62.0,101.95,101.88,74.09048557]
[1770132665653,6.58058997,101.94,101.86,8.8423]
[1770132665853,6.58058997,101.94,101.85,84.25729455]
[1770132665854,6.58058997,101.92,101.85,74.09048557]
[1770132666352,6.61448009,101.9,101.85,74.09048557]
[1770132666756,231.61448009,101.92,101.85,74.09048557]
[1770132667154,231.61448009,101.92,101.86,8.8426]
[1770132667359,6.61448009,101.94,101.87,74.09048557]
[1770132667860,6.61448009,101.94,101.85,74.09048557]
[1770132667861,6.61448009,101.92,101.85,74.09048557]
[1770132668160,6.61448009,101.94,101.87,74.09048557]
[1770132668454,6.61448009,101.94,101.89,8.8402]
[1770132668655,62.0,101.95,101.89,8.8402]
[1770132668656,62.0,101.95,101.91,74.09048557]
[1770132668858,73.06231607,102.0,101.92,74.09048557]
[1770132669058,73.06231607,102.0,101.94,8.836]
[1770132669059,6.61448009,102.0,101.94,8.836]
[1770132669259,225.32,102.01,101.94,211.54178557]
[1770132669560,225.32,102.01,101.94,74.09048557]
[1770132669761,287.32,102.01,101.94,74.09048557]
[1770132669953,287.32,102.01,101.94,211.54168557]
[1770132669954,62.0,102.01,101.94,211.54168557]
[1770132670158,6.61448009,102.05,101.97,74.09048557]
[1770132670362,73.10178037,102.05,101.97,74.09048557]
[1770132670660,6.61448009,102.03,101.97,74.09048557]
[1770132671054,73.10178037,102.03,101.94,74.09048557]
[1770132671258,6.61448009,102.01,101.94,74.09048557]
[1770132671964,298.70178037,102.03,101.94,211.53988557]
[1770132672153,6.61448009,102.02,101.96,8.8341]
[1770132672358,73.68412616,102.02,101.94,74.09048557]
[1770132672563,6.61448009,102.0,101.94,74.09048557]
[1770132672762,6.61448009,101.98,101.91,74.09048557]
[1770132672965,6.61448009,101.96,101.89,137.5079]
[1770132673165,6.61448009,101.94,101.88,74.09048557]
[1770132673559,6.61448009,101.95,101.89,74.09048557]
[1770132673756,6.61448009,101.93,101.86,137.558]
[1770132674262,6.61448009,101.93,101.85,137.5614]
[1770132674462,6.61448009,101.93,101.88,8.8413]
[1770132674870,62.0,101.96,101.88,137.5318]
[1770132675062,68.61448009,101.96,101.89,137.5185]
[1770132675259,68.61448009,101.96,101.89,137.5187]
[1770132675459,225.52,101.97,101.9,137.5062]
[1770132675666,72.70494975,102.01,101.9,137.5062]
[1770132675667,79.31942984,102.01,101.94,137.451]
[1770132675866,79.31942984,102.01,101.93,74.09048557]
[1770132676369,6.61448009,101.99,101.92,8.8372]
[1770132676863,6.61448009,101.99,101.9,74.09048557]
[1770132677367,6.61448009,101.99,101.92,211.56818557]
[1770132677665,6.61448009,101.99,101.92,74.09048557]
[1770132677970,6.61448009,101.99,101.94,8.8361]
[1770132678157,232.23448009,102.01,101.94,8.8361]
[1770132678364,62.0,102.0,101.94,74.09048557]
[1770132679259,62.0,102.0,101.94,82.92608557]
[1770132680469,62.0,102.0,101.95,8.8351]
[1770132680668,62.0,102.0,101.94,211.53988557]
[1770132680869,225.92,102.02,101.94,211.53988557]
[1770132681368,305.39942984,102.03,101.94,211.53988557]
[1770132681565,305.39942984,102.03,101.96,8.8343]
[1770132681766,80.80501718,101.99,101.91,215.87970506]
[1770132681973,6.61448009,101.99,101.92,69.29979418]
[1770132682169,6.61448009,101.99,101.92,78.13749418]
[1770132682369,6.61448009,101.99,101.93,69.29979418]
[1770132682570,6.61448009,102.01,101.93,206.76129418]
[1770132682767,80.80501718,102.02,101.93,206.76129418]
[1770132682968,6.61448009,102.02,101.96,8.8341]
[1770132683168,259.51053709,102.04,101.96,8.8341]
[1770132683368,266.12501718,102.04,101.96,8.8341]
[1770132683671,6.61448009,102.0,101.91,69.29979418]
[1770132683865,6.61448009,101.98,101.91,69.29979418]
[1770132684069,6.61448009,101.98,101.93,8.837]
[1770132684263,62.0,101.99,101.93,69.29979418]
[1770132684566,6.61448009,102.05,101.97,69.29979418]
[1770132684870,6.61448009,102.05,101.98,8.8326]
[1770132686575,6.61448009,102.05,101.99,8.8317]
[1770132687170,6.61448009,102.05,101.97,206.70619418]
[1770132687572,80.80501718,102.05,101.97,69.29979418]
[1770132688774,80.80501718,102.05,101.98,8.8325]
[1770132689675,6.61448009,102.07,101.99,206.68479418]
[1770132690274,80.80501718,102.07,101.99,206.68479418]
[1770132690571,6.61448009,102.07,102.0,69.29979418]
[1770132690768,74.19053709,102.1,102.0,69.29979418]
[1770132690965,6.61448009,102.09,102.0,69.29979418]
[1770132691165,6.61448009,102.09,102.01,69.29979418]
[1770132691372,6.61448009,102.11,102.02,206.64239418]
[1770132691574,6.61448009,102.11,102.03,69.29979418]
[1770132691775,230.29448009,102.12,102.05,8.8264]
[1770132691975,230.29448009,102.12,102.03,206.62729418]
[1770132691976,6.61448009,102.1,102.03,69.29979418]
[1770132692175,80.80501718,102.08,102.0,206.66979418]
[1770132692371,80.80501718,102.08,102.01,8.8293]
[1770132692577,80.80501718,102.08,102.01,69.29979418]
[1770132692778,300.61053709,102.14,102.04,69.29979418]
[1770132692980,6.61448009,102.13,102.05,8.8264]
[1770132693374,80.80501718,102.13,102.04,69.29979418]
[1770132693570,226.48,102.15,102.03,69.29979418]
[1770132693571,6.61448009,102.09,102.03,69.29979418]
[1770132693971,80.80501718,102.09,102.0,206.66949418]
[1770132694173,6.61448009,102.07,102.0,69.29979418]
[1770132694375,6.61448009,102.07,102.0,206.66599418]
[1770132694576,6.61448009,102.07,102.01,69.29979418]
[1770132694975,6.61448009,102.03,101.96,9.08771088]
[1770132695174,6.61448009,102.03,101.96,69.29979418]
[1770132695484,6.61448009,102.03,101.96,206.72079418]
[1770132695679,80.80501718,102.05,101.97,206.70919418]
[1770132696478,80.80501718,102.05,101.99,8.8318]
[1770132696678,80.80501718,102.05,101.97,69.29979418]
[1770132696878,6.61448009,102.03,101.97,69.29979418]
[1770132697381,6.61448009,102.03,101.97,78.13319418]
[1770132697579,6.61448009,102.03,101.94,137.4419]
[1770132697580,6.61448009,102.01,101.94,69.29979418]
[1770132697979,6.61448009,101.99,101.91,69.29979418]
[1770132698381,6.61448009,101.99,101.92,8.8377]
[1770132698780,6.61448009,101.99,101.91,206.79139418]
[1770132699374,6.61448009,101.99,101.92,69.29979418]
[1770132700281,6.61448009,101.99,101.93,8.837]
[1770132700483,80.80501718,101.99,101.92,69.29979418]
[1770132700683,6.61448009,101.95,101.89,69.29979418]
[1770132700880,80.80501718,101.95,101.86,78.14229418]
[1770132701180,6.61448009,101.93,101.86,78.14229418]
[1770132701384,6.61448009,101.93,101.86,206.85899418]
[1770132701585,6.61448009,101.93,101.88,8.8411]
[1770132701785,255.02501718,101.95,101.88,8.8411]
[1770132701983,6.61448009,101.91,101.85,8.8438]
[1770132702279,6.61448009,101.91,101.84,69.29979418]
[1770132702480,6.61448009,101.89,101.82,2.77948636]
[1770132703585,6.61448009,101.87,101.82,2.77948636]
[1770132703788,137.4633,101.94,101.77,206.96969418]
[1770132703789,6.61448009,101.85,101.77,206.96969418]
[1770132704085,6.61448009,101.85,101.77,69.29979418]
[1770132705178,80.80501718,101.85,101.75,137.6968]
[1770132705486,80.80501718,101.85,101.74,216.10170506]
[1770132705487,6.61448009,101.77,101.7,69.29979418]
[1770132705683,6.61448009,101.75,101.7,69.29979418]
[1770132706183,6.61448009,101.75,101.67,69.29979418]
[1770132706484,6.61448009,101.73,101.68,69.29979418]
[1770132706685,6.61448009,101.75,101.68,207.10279418]
[1770132706988,80.80501718,101.77,101.69,69.29979418]
[1770132707388,6.61448009,101.75,101.69,207.08889418]
[1770132707585,6.61448009,101.75,101.69,69.29979418]
[1770132707781,6.61448009,101.75,101.67,137.8152]
[1770132707987,6.61448009,101.75,101.67,215.97429418]
[1770132708390,6.61448009,101.75,101.64,137.8457]
[1770132708391,6.61448009,101.71,101.64,69.29979418]
[1770132708789,6.61448009,101.75,101.67,69.29979418]
[1770132709593,6.61448009,101.77,101.7,69.29979418]
[1770132709787,6.61448009,101.79,101.7,215.93189418]
[1770132709987,80.80501718,101.79,101.7,69.29979418]
[1770132711092,80.80501718,101.79,101.7,207.07529418]
[1770132711690,80.80501718,101.79,101.71,75.53058433]
[1770132711888,6.61448009,101.81,101.73,75.53058433]
[1770132712097,75.64184796,101.82,101.74,75.53058433]
[1770132712897,82.25632805,101.81,101.71,213.29158433]
[1770132713192,82.25632805,101.81,101.72,213.27498433]
[1770132713496,82.25632805,101.81,101.72,222.12978433]
[1770132713887,82.25632805,101.81,101.72,84.38538433]
[1770132714089,76.74164241,101.79,101.69,206.55857325]
[1770132714297,6.61448009,101.77,101.7,206.54307325]
[1770132714497,76.74164241,101.79,101.71,206.53147325]
[1770132714893,6.61448009,101.77,101.7,206.54477325]
[1770132715092,76.74164241,101.79,101.7,206.54477325]
[1770132715296,76.74164241,101.79,101.7,215.40137325]
[1770132715500,76.74164241,101.79,101.7,77.62537325]
[1770132715798,76.74164241,101.79,101.7,215.40197325]
[1770132715993,76.74164241,101.79,101.7,68.76877325]
[1770132715994,6.61448009,101.77,101.7,68.76877325]
[1770132716199,76.74164241,101.77,101.68,77.62707325]
[1770132716390,6.61448009,101.77,101.69,206.55637325]
[1770132716594,6.61448009,101.79,101.71,8.8557]
[1770132717899,76.74164241,101.79,101.71,8.8557]
[1770132718095,76.74164241,101.77,101.69,8.8574]
[1770132718300,6.61448009,101.73,101.65,206.61277325]
[1770132718598,6.61448009,101.73,101.66,137.8285]
[1770132718792,6.61448009,101.75,101.67,206.58527325]
[1770132719197,76.74164241,101.75,101.67,68.76877325]
[1770132719391,6.61448009,101.73,101.67,68.76877325]
[1770132719591,76.74164241,101.75,101.67,206.58477325]
[1770132719895,76.74164241,101.75,101.67,215.44407325]
[1770132720198,76.74164241,101.8,101.71,68.76877325]
[1770132720396,76.74164241,101.8,101.71,215.38757325]
[1770132720694,76.74164241,101.8,101.68,206.57087325]
[1770132720900,225.6,101.81,101.68,68.76877325]
[1770132720901,6.61448009,101.75,101.68,68.76877325]
[1770132721193,6.61448009,101.75,101.65,137.8329]
[1770132721194,6.61448009,101.73,101.65,206.60167325]
[1770132721398,6.61448009,101.73,101.66,215.46007325]
[1770132721700,6.61448009,101.74,101.66,206.59957325]
[1770132722002,6.61448009,101.74,101.67,8.859]
[1770132722199,76.74164241,101.78,101.69,68.76877325]
[1770132722493,6.61448009,101.74,101.66,68.76877325]
[1770132722697,6.61448009,101.72,101.64,206.62667325]
[1770132722890,6.61448009,101.72,101.64,68.76877325]
[1770132723093,70.12716232,101.73,101.63,206.64007325]
[1770132723290,76.74164241,101.73,101.65,206.61217325]
[1770132724294,6.61448009,101.75,101.68,68.76877325]
[1770132724698,6.61448009,101.73,101.65,68.76877325]
[1770132725096,6.61448009,101.73,101.66,8.8602]
[1770132726404,76.74164241,101.75,101.67,77.62827325]
[1770132726598,76.74164241,101.75,101.67,68.76877325]
[1770132726795,76.74164241,101.77,101.68,68.76877325]
[1770132726995,6.61448009,101.75,101.68,68.76877325]
[1770132727895,6.61448009,101.75,101.68,77.62737325]
[1770132728397,6.63285098,101.76,101.69,77.62647325]
[1770132728599,6.63285098,101.76,101.69,68.76877325]
[1770132729498,76.7600133,101.76,101.66,206.59397325]
[1770132730104,70.12716232,101.76,101.66,206.59397325]
[1770132730302,225.1,101.78,101.63,206.63747325]
[1770132730303,76.7600133,101.73,101.63,206.63747325]
[1770132730810,6.63285098,101.73,101.66,206.59907325]
[1770132731006,225.02,101.74,101.67,68.76877325]
[1770132731306,6.63285098,101.73,101.64,206.62297325]
[1770132731509,6.63285098,101.73,101.65,8.8607]
[1770132732203,6.63285098,101.71,101.64,68.76877325]
[1770132733022,6.63285098,101.71,101.66,8.8605]
[1770132733217,6.63285098,101.73,101.66,77.62927325]
[1770132733419,6.63285098,101.76,101.67,68.76877325]
[1770132733722,76.7600133,101.74,101.64,206.62297325]
[1770132733923,76.7600133,101.74,101.65,68.76877325]
[1770132734113,76.7600133,101.74,101.67,68.76877325]
[1770132734114,6.63285098,101.74,101.67,68.76877325]
[1770132734722,76.7600133,101.74,101.67,68.76877325]
[1770132737715,6.63285098,101.76,101.67,68.76877325]
[1770132739125,76.7600133,101.76,101.67,68.76877325]
[1770132739322,70.12716232,101.76,101.67,68.76877325]
[1770132739521,6.63285098,101.75,101.67,206.58497325]
[1770132739721,6.63285098,101.75,101.68,68.76877325]
[1770132741129,6.63285098,101.75,101.68,77.62757325]
[1770132742021,6.63285098,101.75,101.68,68.76877325]
[1770132742724,6.63285098,101.75,101.66,8.8597]
[1770132742725,78.77533999,101.75,101.66,8.8597]
[1770132742925,6.63285098,101.73,101.66,77.96825847]
[1770132743520,78.77533999,101.75,101.68,77.96725847]
[1770132743927,224.6,101.76,101.69,8.8579]
[1770132744726,224.6,101.76,101.69,77.96645847]
[1770132744926,78.77533999,101.81,101.72,69.10855847]
[1770132745122,78.77533999,101.81,101.73,69.10855847]
[1770132745518,177.35285098,101.83,101.74,69.10855847]
[1770132745723,177.35285098,101.83,101.75,69.10855847]
[1770132746129,177.35285098,101.83,101.76,69.10855847]
[1770132746628,177.35285098,101.83,101.76,77.96025847]
[1770132747526,72.14248901,101.84,101.76,77.96025847]
[1770132747728,78.77533999,101.84,101.76,77.96025847]
[1770132747927,6.63285098,101.78,101.7,69.10855847]
[1770132748327,6.63285098,101.74,101.67,69.10855847]
[1770132749028,6.63285098,101.74,101.67,77.96775847]
[1770132749332,6.63285098,101.74,101.67,69.10855847]
[1770132750332,6.63285098,101.74,101.67,77.96815847]
[1770132751436,6.63285098,101.74,101.67,69.10855847]
[1770132751632,297.86248901,101.76,101.67,69.10855847]
[1770132751931,6.63285098,101.74,101.67,69.10855847]
[1770132752633,6.63285098,101.74,101.68,77.96725847]
[1770132753234,6.63285098,101.76,101.69,77.96645847]
[1770132753626,6.63285098,101.76,101.69,69.10855847]
[1770132753832,6.63285098,101.78,101.71,69.10855847]
[1770132754433,6.63285098,101.78,101.72,8.8552]
[1770132754836,78.77533999,101.82,101.74,69.10855847]
[1770132755343,78.77533999,101.82,101.75,8.8524]
[1770132755640,78.77533999,101.82,101.74,69.10855847]
[1770132756239,225.82,101.83,101.76,69.10855847]
[1770132756438,72.14248901,101.85,101.78,69.10855847]
[1770132756633,78.77533999,101.88,101.79,69.10855847]
[1770132756939,160.01285098,101.9,101.81,69.10855847]
[1770132757134,78.77533999,101.9,101.81,69.10855847]
[1770132757330,78.77533999,101.9,101.81,206.73545847]
[1770132757534,6.63285098,101.9,101.82,69.10855847]
[1770132758238,78.77533999,101.9,101.82,69.10855847]
[1770132758434,6.63285098,101.88,101.79,69.10855847]
[1770132759237,78.77533999,101.86,101.76,69.10855847]
[1770132759438,6.63285098,101.84,101.76,69.10855847]
[1770132760236,6.63285098,101.84,101.77,206.79025847]
[1770132760433,304.59533999,101.86,101.77,206.79025847]
[1770132761241,304.59533999,101.86,101.77,69.10855847]
[1770132761440,6.63285098,101.84,101.77,69.10855847]
[1770132762044,6.63285098,101.84,101.77,77.95935847]
[1770132763541,6.63285098,101.81,101.74,69.10855847]
[1770132763740,6.63285098,101.83,101.75,69.10855847]
[1770132763943,6.63285098,101.83,101.76,69.10855847]
[1770132764150,6.63285098,101.83,101.76,77.96015847]
[1770132764648,78.77533999,101.84,101.76,77.96015847]
[1770132765747,6.63285098,101.86,101.77,77.95945847]
[1770132765950,6.63285098,101.86,101.79,69.10855847]
[1770132766151,72.14248901,101.87,101.79,69.10855847]
[1770132766351,6.63285098,101.88,101.8,77.95685847]
[1770132766546,78.77533999,101.9,101.81,69.10855847]
[1770132766744,78.77533999,101.88,101.79,69.10855847]
[1770132767450,6.63285098,101.9,101.83,69.10855847]
[1770132767754,78.77533999,101.92,101.84,69.10855847]
[1770132768054,6.63285098,101.9,101.83,8.8449]
[1770132768556,6.63285098,101.9,101.83,77.95345847]
[1770132769153,6.63285098,101.9,101.83,69.10855847]
[1770132769555,78.77533999,101.92,101.84,69.10855847]
[1770132769953,78.77533999,101.92,101.84,77.95335847]
[1770132770154,78.77533999,101.92,101.84,69.10855847]
[1770132770350,155.0467,102.0,101.84,69.10855847]
[1770132770351,6.63285098,101.94,101.86,70.239192]
[1770132770658,6.63285098,101.95,101.87,70.239192]
[1770132771151,75.84558952,101.98,101.89,207.758792]
[1770132771359,6.63285098,102.03,101.94,70.239192]
[1770132771554,6.63285098,102.03,101.95,79.074292]
[1770132772056,231.70558952,102.07,101.96,70.239192]
[1770132772253,6.63285098,102.06,101.97,70.239192]
[1770132772657,82.4784405,102.1,102.0,207.607592]
[1770132773058,6.63285098,102.11,102.03,75.30361244]
[1770132773262,6.63285098,102.12,102.03,75.30361244]
[1770132773763,6.63285098,102.06,101.97,75.30361244]
[1770132773954,6.63285098,102.05,101.97,75.30361244]
[1770132774362,305.41632341,102.07,101.97,221.54301244]
[1770132774656,80.63632341,102.07,101.98,75.30361244]
[1770132775452,6.63285098,102.07,101.99,75.30361244]
[1770132775652,6.63285098,102.12,102.01,75.30361244]
[1770132775866,211.07757243,102.23,102.07,75.30361244]
[1770132776059,6.63285098,102.22,102.09,75.30361244]
[1770132776264,74.00347243,102.23,102.13,75.30361244]
[1770132776560,6.63285098,102.24,102.14,75.30361244]
[1770132776761,6.63285098,102.26,102.15,75.30361244]
[1770132777167,6.63285098,102.24,102.15,75.30361244]
[1770132777355,74.00347243,102.29,102.18,75.30361244]
[1770132777869,6.63285098,102.28,102.18,75.30361244]
[1770132778168,6.63285098,102.32,102.22,75.30361244]
[1770132778364,74.00347243,102.33,102.22,75.30361244]
[1770132778968,74.00347243,102.3,102.18,75.30361244]
[1770132779262,74.00347243,102.3,102.19,75.30361244]
[1770132779459,241.34369609,102.32,102.2,75.30361244]
[1770132779664,74.00347243,102.33,102.23,75.30361244]
[1770132779864,74.00347243,102.37,102.26,75.30361244]
[1770132780060,210.89237243,102.36,102.26,75.30361244]
[1770132780263,16.74369609,102.32,102.21,75.30361244]
[1770132780470,74.00347243,102.3,102.18,75.30361244]
[1770132780760,74.00347243,102.3,102.2,75.30361244]
[1770132780966,90.74716852,102.29,102.16,75.30361244]
[1770132781155,90.74716852,102.29,102.17,75.30361244]
[1770132781359,90.74716852,102.26,102.14,75.30361244]
[1770132781566,74.00347243,102.23,102.14,75.30361244]
[1770132781770,90.74716852,102.23,102.11,75.30361244]
[1770132781965,74.00347243,102.23,102.11,75.30361244]
[1770132782270,90.74716852,102.23,102.11,75.30361244]
[1770132782465,74.00347243,102.27,102.14,75.30361244]
[1770132782665,16.74369609,102.32,102.2,75.30361244]
[1770132782969,74.00347243,102.32,102.21,75.30361244]
[1770132783360,136.8969,102.36,102.21,75.30361244]
[1770132783361,226.7611292,102.37,102.25,75.30361244]
[1770132783563,74.00347243,102.38,102.28,75.30361244]
[1770132783966,210.86547243,102.38,102.28,75.30361244]
[1770132784269,74.00347243,102.38,102.29,75.30361244]
[1770132784465,16.74369609,102.41,102.29,75.30361244]
[1770132784466,90.74716852,102.41,102.29,75.30361244]
[1770132784865,210.85447243,102.39,102.29,75.30361244]
[1770132785065,74.00347243,102.35,102.26,75.30361244]
[1770132785866,136.8505,102.39,102.26,75.30361244]
[1770132785867,74.00347243,102.41,102.29,75.30361244]
[1770132786067,136.8354,102.4,102.29,75.30361244]
[1770132786268,74.00347243,102.39,102.29,75.30361244]
[1770132786466,74.00347243,102.38,102.29,75.30361244]
[1770132786672,299.16347243,102.44,102.31,75.30361244]
[1770132786874,74.00347243,102.47,102.34,75.30361244]
[1770132787071,74.00347243,102.47,102.37,75.30361244]
[1770132787370,130.24,102.5,102.38,75.30361244]